Cogmind - Beta 15 @@@ ROGUE MODE // 2025.08.17 @ 15:21:35 Player: shorem Result: Self-destructed Performance ------------- Evolutions (2) 1000 Regions Visited (5) 1000 Robots Destroyed (34) 170 Value Destroyed (824) 824 Prototype IDs (0) 0 Alien Tech Used (0) 0 Bonus (0) 0 TOTAL SCORE: 2994 Bonus ------- None Cogmind --------- Core Integrity 108/550 Matter 255/300 Energy 4/100 System Corruption 0% Temperature Cool (9) Movement Walking (120) Location -8/Materials Parts ------- > --- POWER (1) -------- (None) > --- PROPULSION (4) --- Aluminum Leg Aluminum Leg Aluminum Leg Armored Wheel > --- UTILITY (4) ------ Large Storage Unit Improved Sensor Array Signal Interpreter ECM Suite > --- WEAPON (2) ------- (None) > --- INVENTORY (15) --- Ion Engine Advanced Heat Sink Medium Matter Pod (100) Experimental Sensor Array Particle Gun Rocket Launcher Improved Datajack Peak State ------------ > --- POWER ------------ Deuterium Engine > --- PROPULSION ------- Aluminum Leg Aluminum Leg Carbon-fiber Leg Titanium Leg > --- UTILITY ---------- Large Storage Unit Trap Scanner Improved Sensor Array Signal Interpreter > --- WEAPON ----------- Particle Gun Particle Gun > --- INVENTORY -------- Ion Engine Deuterium Engine Aluminum Leg Aluminum Leg Wheel Wheel Armored Wheel Humpback Medium Matter Pod Experimental Sensor Array ECM Suite Rocket Launcher Improved Datajack Ripper [Rating: 26] Favorites ----------- Power Ion Engine Engine Ion Engine Propulsion Aluminum Leg Treads Light Treads Leg Aluminum Leg Wheel Wheel Utility Large Storage Unit Device Trap Scanner Storage Large Storage Unit Processor Signal Interpreter Weapon Beam Cannon Energy Gun Particle Gun Energy Cannon Beam Cannon Ballistic Gun Light Assault Rifle Launcher Grenade Launcher Slashing Weapon Ripper Special Melee Weapon Datajack Build | -11 -10 -10 -10 -9 -8 ------- Run | Yrd Mat Min Exi Min Mat Slots Evolved 4 | . . . . . 4 Power . | . . . . . . Propulsion 2 | . . . . . 2 Utility 2 | . . . . . 2 Weapon . | . . . . . . Parts Attached 38 | 6 7 3 . . 22 Power 6 | 1 1 1 . . 3 Engine 6 | 1 1 1 . . 3 Core . | . . . . . . Reactor . | . . . . . . Propulsion 14 | 2 2 1 . . 9 Treads 1 | 1 . . . . . Leg 11 | . 2 1 . . 8 Wheel 2 | 1 . . . . 1 Hover . | . . . . . . Flight . | . . . . . . Utility 8 | 1 1 . . . 6 Device 4 | . . . . . 4 Storage 3 | 1 1 . . . 1 Processor 1 | . . . . . 1 Hackware . | . . . . . . Protection . | . . . . . . Artifact . | . . . . . . Weapon 10 | 2 3 1 . . 4 Energy Gun 2 | . . . . . 2 Energy Cannon 1 | . 1 . . . . Ballistic Gun 3 | 2 . 1 . . . Ballistic Cannon . | . . . . . . Launcher 2 | . 1 . . . 1 Special Weapon . | . . . . . . Impact Weapon . | . . . . . . Slashing Weapon 1 | . . . . . 1 Piercing Weapon . | . . . . . . Special Melee Weapon 1 | . 1 . . . . Unidentified Prototypes . | . . . . . . Parts Lost 11 | . . . . . 11 Power 2 | . . . . . 2 Propulsion 6 | . . . . . 6 Utility 1 | . . . . . 1 Weapon 2 | . . . . . 2 Highest Loss Streak 10 | . . . . . 10 To Critical Strikes . | . . . . . . Average Backups 13 | 3 12 14 14 14 13 Power 2 | . 1 1 2 2 2 Propulsion 3 | 2 4 3 3 3 3 Utility 5 | . 3 5 6 6 4 Weapon 2 | 1 2 2 2 2 2 Tool/Special . | . . . . . . Unused Backups 15 | . 2 4 2 . 7 Power 2 | . . 1 . . 1 Propulsion 2 | . . 1 . . 1 Utility 7 | . 1 1 2 . 3 Weapon 2 | . 1 1 . . . Tool/Special 2 | . . . . . 2 Average Slot Usage (%) 98 | . 99 100 100 100 92 Engine 13 | . 14 14 14 14 8 Leg 28 | . 27 28 28 28 31 Device 2 | . . . . . 12 Storage 25 | . 27 28 28 28 15 Processor 1 | . . . . . 5 Energy Gun 1 | . . . . . 9 Energy Cannon 10 | . 3 14 14 14 1 Ballistic Gun 13 | . 21 14 14 14 3 Peak Build Rating 26 | 6 8 9 9 9 26 Average Rating 10 | 4 7 8 9 9 18 On Entrance 6 | . 6 8 9 9 9 Naked Turns . | . . . . . . Heaviest Build 40 | 14 35 35 34 34 40 Greatest Support 52 | 20 20 20 20 20 52 Greatest Overweight (x) 2 | 1 1 1 1 1 2 Average Overweight (x) . | . . 1 1 1 . Largest Inventory Capacity 15 | 8 15 15 15 15 15 Average Capacity 14 | 6 14 15 15 15 15 Most Carried 15 | 7 15 15 15 15 15 Average Carried 14 | 4 12 14 14 15 14 Final Capacity 15 | 8 15 15 15 15 15 Final Carried 15 | 6 15 15 15 15 7 Class Distribution -------------------- 89% | Mutant 6% | Scavenger-Mutant 3% | Scavenger-Skirmisher Dominant Class ---------------- Mutant | -10/Materials Mutant | -10/Mines Mutant | -10/Exiles Mutant | -9/Mines Mutant | -8/Materials Resources | -11 -10 -10 -10 -9 -8 ----------- Run | Yrd Mat Min Exi Min Mat Matter Collected 890 | 251 86 293 . . 260 Remotely . | . . . . . . Salvage Created 880 | . 173 167 . . 540 Parts 44 | . 11 7 . . 26 Haulers Intercepted . | . . . . . . Recyclers Shooed 1 | . 1 . . . . Parts Field Recycled . | . . . . . . Retrieved Matter . | . . . . . . Parts Self-Destructed . | . . . . . . Prevented . | . . . . . . Kills | -11 -10 -10 -10 -9 -8 ------- Run | Yrd Mat Min Exi Min Mat Combat Hostiles Destroyed 29 | . 7 7 . . 15 Melee 6 | . . . . . 6 Guns 11 | . 6 2 . . 3 Cannons 7 | . . 5 . . 2 AOE 3 | . 1 . . . 2 Classes Destroyed 6 | . 3 . . . 3 Worker 1 | . . . . . 1 Mechanic 1 | . . . . . 1 Watcher 3 | . 2 . . . 1 Swarmer 16 | . 5 5 . . 6 Grunt 12 | . 2 2 . . 8 Hunter 1 | . . . . . 1 Best Kill Streak 4 | . 4 3 . . 4 Combat Bots Only 4 | . 3 3 . . 4 Max Kills in Single Turn 2 | . 2 1 . . 2 Gunslinging 1 | . 1 . . . . Exploded 1 | . 1 . . . 1 Melee 1 | . . . . . 1 Uniques/NPCs Destroyed . | . . . . . . Combat | -11 -10 -10 -10 -9 -8 -------- Run | Yrd Mat Min Exi Min Mat Hostile Shots Fired 298 | . 46 35 . . 217 Missed 83 | . 15 5 . . 63 Hits 215 | . 31 30 . . 154 Projectile 215 | . 31 30 . . 154 Critical Strikes 8 | . . 2 . . 6 Damage Taken 2468 | . 270 321 . . 1877 Core 601 | . 82 77 . . 442 Absorbed by Shields . | . . . . . . Core Remaining (%) 68 | 100 . . . 36 . Volleys Fired 73 | . 21 17 . . 35 Largest 2 | . 2 2 . . 2 Hottest 130 | . 50 80 . . 130 Shots Fired 132 | . 40 34 . . 58 Gun 100 | . 39 17 . . 44 Cannon 29 | . . 17 . . 12 Launcher 3 | . 1 . . . 2 Special . | . . . . . . Kinetic 80 | . 39 17 . . 24 Thermal 49 | . . 17 . . 32 Explosive 3 | . 1 . . . 2 Electromagnetic . | . . . . . . Robot Hit Streak 10 | . 4 10 . . 10 Robot Miss Streak 5 | . 5 4 . . 2 Penetration Max . | . . . . . . Secondary Targets 1 | . 1 . . . . Max Gunslinging Chain 1 | . 1 . . . . Shots Hit Robots 99 | . 23 19 . . 57 Core Hits 50 | . 13 9 . . 28 Critical Kills 1 | . . . . . 1 Critical Parts Destroyed . | . . . . . . Critical Strikes 4 | . . . . . 4 Burn 1 | . . . . . 1 Meltdown 1 | . . . . . 1 Sever 2 | . . . . . 2 Melee Attacks 29 | . 1 . . . 28 Impact . | . . . . . . Slashing 28 | . . . . . 28 Piercing . | . . . . . . Sneak Attacks 2 | . 1 . . . 1 Combat Hostiles . | . . . . . . Follow-up Attacks . | . . . . . . Damage Inflicted 2008 | . 367 277 . . 1364 Guns 712 | . 288 84 . . 340 Cannons 316 | . . 193 . . 123 Explosions 282 | . 79 . . . 203 Melee 687 | . . . . . 687 Ramming 11 | . . . . . 11 Kinetic 510 | . 288 84 . . 138 Thermal 518 | . . 193 . . 325 Explosive 282 | . 79 . . . 203 Electromagnetic . | . . . . . . Impact . | . . . . . . Slashing 687 | . . . . . 687 Piercing . | . . . . . . Highest Corruption . | . . . . . . Average Corruption . | . . . . . . Corruption Purged . | . . . . . . Corruption Blocked . | . . . . . . Overload Shots . | . . . . . . Overflow Damage 44 | . 13 . . . 31 Projectiles . | . . . . . . Explosions 13 | . 13 . . . . Melee 31 | . . . . . 31 Knockbacks . | . . . . . . Impact . | . . . . . . Kinetic . | . . . . . . Secondary . | . . . . . . Self-Inflicted Damage . | . . . . . . Shots . | . . . . . . Rammed . | . . . . . . Targets Rammed 1 | . . . . . 1 Kicked 1 | . . . . . 1 Crushed . | . . . . . . Highest Temperature 270 | . . 216 . . 270 Average Temperature 70 | . . 87 . . 59 Received Heat Transfer 816 | . 60 117 . . 639 Effects 1 | . . . . . 1 Energy Bleed 1 | . . . . . 1 Siege Activations . | . . . . . . Martial Activations . | . . . . . . Shielding Activations . | . . . . . . Robots Disrupted . | . . . . . . Combat Hostiles . | . . . . . . Robots Corrupted . | . . . . . . Combat Hostiles . | . . . . . . Parts Fried . | . . . . . . Impact Corruptions . | . . . . . . Robots Melted 2 | . . . . . 2 Combat Hostiles 2 | . . . . . 2 Parts Melted 3 | . . 1 . . 2 Heat Transferred 1221 | . . 407 . . 814 Parts Sabotaged . | . . . . . . Parts Stolen . | . . . . . . Parts Stripped . | . . . . . . Power Chain Reactions . | . . . . . . Alert | -11 -10 -10 -10 -9 -8 ------- Run | Yrd Mat Min Exi Min Mat Maximum Alert Level . | . . . . . . Low Security (%) 100 | 100 100 100 . 100 100 Level 1 . | . . . . . . Level 2 . | . . . . . . Level 3 . | . . . . . . Level 4 . | . . . . . . Level 5 . | . . . . . . High Security . | . . . . . . Max Security . | . . . . . . Peak Influence 143 | . 81 79 . . 143 Initial . | . . . . . . Average 34 | . 27 17 . . 75 Influence Increases 766 | . 198 185 . . 383 Destroy 0b10 Robot/C 580 | . 140 140 . . 300 Destroy 0b10 Robot/NC 25 | . 10 . . . 15 Destroy Leader 96 | . 24 30 . . 42 Disable Machine 15 | . . 15 . . . Destroy Structure 20 | . 9 . . . 11 Lose Combat Pursuer 30 | . 15 . . . 15 Influence Decreases 766 | . 198 185 . . 383 Time Decay 659 | . 198 185 . . 276 Lost Part 107 | . . . . . 107 Squads Dispatched 5 | . 1 . . . 4 Investigation 1 | . 1 . . . . Extermination . | . . . . . . Reinforcement 4 | . . . . . 4 Assault . | . . . . . . Garrison . | . . . . . . Intercept . | . . . . . . Searches Triggered . | . . . . . . Construction Impeded . | . . . . . . Haulers Reinforced . | . . . . . . Active Scanning Responses . | . . . . . . Cargo Convoy Interrupts . | . . . . . . Stealth | -11 -10 -10 -10 -9 -8 --------- Run | Yrd Mat Min Exi Min Mat Distress Signals 5 | . 2 . . . 3 Communications Jammed . | . . . . . . Distress Signals . | . . . . . . Times Spotted 63 | . 11 8 . . 44 Peak Tracking Total 14 | . 5 3 . . 14 Tactical Retreats 11 | . 1 . . . 10 Traps | -11 -10 -10 -10 -9 -8 ------- Run | Yrd Mat Min Exi Min Mat Traps Triggered . | . . . . . . Indirectly . | . . . . . . Trap Hack Attempts . | . . . . . . Triggered . | . . . . . . Disarmed . | . . . . . . Reprogrammed . | . . . . . . Reused . | . . . . . . Traps Extracted . | . . . . . . Installed . | . . . . . . Triggered . | . . . . . . Machines | -11 -10 -10 -10 -9 -8 ---------- Run | Yrd Mat Min Exi Min Mat Machines Disabled 1 | . . 1 . . . Max in Single Turn 1 | . . 1 . . . Machines Repaired . | . . . . . . Machines Dismantled . | . . . . . . Machines Sabotaged . | . . . . . . Overloaded Fab Kills . | . . . . . . Hacking | -11 -10 -10 -10 -9 -8 --------- Run | Yrd Mat Min Exi Min Mat Machines Accessed 7 | . 2 . 4 . 1 Terminals 3 | . 2 . . . 1 Fabricators . | . . . . . . Repair Stations . | . . . . . . Recycling Units . | . . . . . . Scanalyzers . | . . . . . . Garrison Access . | . . . . . . Total Hacks 56 | . 4 . 49 . 3 Successful 54 | . 2 . 49 . 3 Failed 2 | . 2 . . . . Catastrophic . | . . . . . . Database Lockouts . | . . . . . . Manual 4 | . . . 4 . . Terminals 7 | . 4 . . . 3 Fabricators . | . . . . . . Repair Stations . | . . . . . . Recycling Units . | . . . . . . Scanalyzers . | . . . . . . Garrison Access . | . . . . . . Terminal Hacks 54 | . 2 . 49 . 3 Record 54 | . 2 . 49 . 3 Fabricator Hacks . | . . . . . . Repair Station Hacks . | . . . . . . Recycling Unit Hacks . | . . . . . . Scanalyzer . | . . . . . . Garrison Access Hacks . | . . . . . . Unauthorized Hacks . | . . . . . . Terminals . | . . . . . . Fabricators . | . . . . . . Repair Stations . | . . . . . . Recycling Units . | . . . . . . Scanalyzers . | . . . . . . Garrison Access . | . . . . . . Data Cores Recovered . | . . . . . . Used . | . . . . . . Hacking Detections 2 | . 1 . . . 1 Full Trace Events 1 | . 1 . . . . Feedback Events . | . . . . . . Feedback Blocked . | . . . . . . Robot Schematics Acquired . | . . . . . . Robots Built . | . . . . . . Authchips . | . . . . . . Time . | . . . . . . Total Robot Build Rating . | . . . . . . Part Schematics Acquired . | . . . . . . Parts Built . | . . . . . . Authchips . | . . . . . . Time . | . . . . . . Total Part Build Rating . | . . . . . . Parts Repaired . | . . . . . . Time . | . . . . . . Parts Recycled . | . . . . . . Recycled Matter . | . . . . . . Retrieved Matter . | . . . . . . Retrieved Components . | . . . . . . Parts Scanalyzed . | . . . . . . Part Schematics Acquired . | . . . . . . Parts Damaged . | . . . . . . Bothacking | -11 -10 -10 -10 -9 -8 ------------ Run | Yrd Mat Min Exi Min Mat Used RIF Installer . | . . . . . . Robots Hacked 1 | . 1 . . . . Non-combat 1 | . 1 . . . . Combat . | . . . . . . Robot Hacks Applied 1 | . 1 . . . . parse_system 1 | . 1 . . . . Relay Couplers Released . | . . . . . . Fabnet Peak Effective % . | . . . . . . Robots Rewired . | . . . . . . Allies Hacked . | . . . . . . Hacks Repelled . | . . . . . . Allies | -11 -10 -10 -10 -9 -8 -------- Run | Yrd Mat Min Exi Min Mat Total Allies . | . . . . . . Largest Group . | . . . . . . Highest-Rated Group . | . . . . . . Highest-Rated Ally . | . . . . . . Total Orders . | . . . . . . Ally Attacks . | . . . . . . Total Damage . | . . . . . . Kills . | . . . . . . Allies Corrupted . | . . . . . . Allies Melted . | . . . . . . Intel | -11 -10 -10 -10 -9 -8 ------- Run | Yrd Mat Min Exi Min Mat Active Infowar (turns) 658 | . . . . . 658 Sensors 370 | . . . . . 370 Traps 379 | . . . . . 379 ECM 289 | . . . . . 289 Robot Analysis Total . | . . . . . . Derelict Logs Recovered 2 | . . 2 . . . Drone Launches . | . . . . . . Drone Recoveries . | . . . . . . Exploration | -11 -10 -10 -10 -9 -8 ------------- Run | Yrd Mat Min Exi Min Mat Turns Passed 4098 | 59 611 1045 1517 133 733 Spaces Moved 2074 | 44 273 502 798 71 386 Core 8 | 8 . . . . . Treads 7 | 7 . . . . . Legs 2000 | . 273 502 798 71 356 Wheels 59 | 29 . . . . 30 Hover . | . . . . . . Flight . | . . . . . . Fastest Speed 50 | 50 120 190 190 190 100 Average Speed 176 | 95 186 190 190 190 132 Slowest Speed 190 | 160 190 190 190 190 190 Overloaded Moves . | . . . . . . Propulsion Burnouts . | . . . . . . Robots Hopped . | . . . . . . Potential Cave-ins . | . . . . . . Cave-ins Triggered . | . . . . . . Exploration Rate (%) 45 | 4 45 87 93 15 27 Regions Visited 5 Branch Regions 3 Pre-discovered Areas 2 | . . 1 1 . . Known Exits Taken . | . . . . . . Unknown Exits Taken 5 | 1 1 1 1 1 . Scrap Searched 3 | . . 2 . 1 . Spaces Dug . | . . . . . . Terrain Destroyed 20 | . 8 . . . 12 Melee . | . . . . . . Projectile . | . . . . . . AOE 20 | . 8 . . . 12 Terrain Rammed . | . . . . . . Walls Destroyed . | . . . . . . Machines Disabled . | . . . . . . Actions | -11 -10 -10 -10 -9 -8 --------- Run | Yrd Mat Min Exi Min Mat Total 2341 | 61 334 565 800 70 511 Wait 49 | . 17 23 . . 9 Move 2069 | 43 272 501 797 70 386 Hop . | . . . . . . Pick Up 47 | 12 13 10 1 . 11 Fast Attach 3 | . . . . . 3 Attach 19 | 6 1 . . . 12 Detach . | . . . . . . Swap 24 | . 6 3 . . 15 Drop 27 | . 3 11 2 . 11 Fire 73 | . 21 17 . . 35 Melee 29 | . 1 . . . 28 Ram . | . . . . . . Kick 1 | . . . . . 1 Crush . | . . . . . . Escape Stasis . | . . . . . . Rewire . | . . . . . . Trap . | . . . . . . Miscellaneous . | . . . . . . Route ------- -11/Scrapyard -10/Materials (discovered 2 exits: [*Mat] / [*Min]) -10/Mines (discovered 3 exits: [*Mat x2] / *Exi) -10/Exiles (discovered 2 exits: [*Min x2]) -9/Mines -8/Materials History --------- Turn | Location | Event 9 | -11/Scrapyard | Discovered new exit (range 16) 60 | -11/Scrapyard | Entered Materials 331 | -10/Materials | Build established: Mutant 441 | -10/Materials | Discovered new exit (range 14) 573 | -10/Materials | Discovered new exit (range 12) 671 | -10/Materials | Entered Mines 790 | -10/Mines | Received a Rocket Launcher from a helpful Derelict 938 | -10/Mines | A weapon hastily lodged in a ceiling crevice suddenly fell to the ground 1197 | -10/Mines | Discovered new exit (range 11) 1206 | -10/Mines | Learned Materials terminal intel 1274 | -10/Mines | Core integrity fell below 50% 1355 | -10/Mines | Discovered new exit (range 15) 1419 | -10/Mines | Learned location of Zion (-7) 1460 | -10/Mines | Found DCF Scrap (12 items) 1509 | -10/Mines | Found a damaged Exp. Sensor Array with a note attached 1514 | -10/Mines | Found Prototype Device 1708 | -10/Mines | Deemed a non-threat by the Exiles lab entrance 1708 | -10/Mines | Discovered new exit (range 5) 1716 | -10/Mines | Entered Exiles 1749 | -10/Exiles | Discovered new exit (range 15) 1798 | -10/Exiles | Met 8R-AWN 1832 | -10/Exiles | Met EX-HEX 1948 | -10/Exiles | Met EX-DEC 1980 | -10/Exiles | Visited The Gauntlet 2273 | -10/Exiles | Discovered new exit (range 12) 2401 | -10/Exiles | Met EX-BIN 3233 | -10/Exiles | Entered Mines 3262 | -9/Mines | Discovered new exit (range 4) 3290 | -9/Mines | Found a hidden stash of uninstalled traps 3366 | -9/Mines | Entered Materials 3366 | -8/Materials | Evolved 4 slots: Propulsion x2, Utility x2 3367 | -8/Materials | Loaded intel: 12 terminal locations 4047 | -8/Materials | Core integrity fell below 50% 4099 | -8/Materials | Core integrity fell below 20% 4099 | -8/Materials | Self-destructed Last Messages --------------- Trap Scanner destroyed. Y-45 Defender Lgt. Armor Plating severed. Y-45 Defender Imp. Ion Engine severed. Critical hit (Burn: +37). Particle Gun destroyed. Sneak attack on M-13 Machinist. M-13 Machinist destroyed. Critical hit (Burn: +37). Titanium Leg destroyed. Carbon-fiber Leg destroyed. Deuterium Engine destroyed. Aluminum Leg destroyed. ALERT: Suspicious intruders detected, dispatching Specialist reinforcements to area. Wheel destroyed. Deuterium Engine destroyed. Ripper destroyed. Aluminum Leg destroyed. S-10 Pest destroyed. G-47 Trooper suffers critical hit (Burn). Map ----- +----------------------------------------------------+ | + # """ """ #?????????????????????????????? | | # """ # #?????????????????????????????? | | # "R # #?????????????????????????????? | | # """ # = #?????????????????????????????? | | # ###+########????????????????????????????? | | ########## # #????????????????????????????? | | ########## # #????????????????????????????? | | " + #????????????????????????????? | | ########## # #????????????????????????????? | | #%[ #?# # ]] #????????????????????????????? | | # """#?####### ]] #????????????????????????????? | | #% """#???????# #????????????????????????????? | | +% """#???????#= #????????????????????????????? | | # [ #???????# #????????????????????????????? | | # #???????######???"????????????????????????? | | ########????????????????!???x????????????????????? | | #??????????????????????? ????????????????????????? | | #????????#######?????###+###?????????????????????? | | ########## ####### ]#?????????????????????? | | ^ ?????????????????????? | | ^ ?????????????????????? | | % ??????????????????????? | | ######+### ####### Y ??????????????????????? | | # #####??????# #??????????????????????? | | # #??????????# #??????????????????????? | | # #??????????# @#??????????????????????? | | #%#??????????# #??????????????????????? | | # #??????????# #??????????????????????? | | # #??????????# #??????????????????????? | | # #?????????## ##?????????????????????? | | ########## ##????????# % ####### #?????????? | | ???????# ##########s #?????????? | | ???????# #?????????? | | ???????# g o #?????????? | | ???????# ##########g g ####### #?????????? | | ???????## ########### #????????? ##?????????? | | ????????# ## !## #????????????????????? | | ????????# ##""" ##!!!!!!#?""?????????????????? | | ????????# ##"R ##!!!!!!#?""?????????????????? | | ???????## ##""" #########?"T?????????????????? | | +####### # #?????????""????H????????????? | | %#= #?????????""?????????????????? | | T^+! """ #????????????????????????????? | | ######## = #* """ #????????????????????????????? | | ???????###### """ #????????????????????????????? | | ????????????# #????????????????????????????? | | ????????????#########????????????????????????????? | | | | | | | +----------------------------------------------------+ Best States ------------- Heat Dissipation 31 Energy Generation 14 Energy Capacity 275 Matter Stores 400 Matter Capacity 400 Sight Range 16 Robot Scan Range 15 Terrain Scan Density 10 ECM Strength 1 Evasion (%) 55 Recoil Reduction 1 Item Schematics ----------------- None Robot Schematics ------------------ None Fabricated ------------ Nothing Repaired ---------- Nothing Alien Tech Used ----------------- None Achievements -------------- None Challenges ------------ None Game ------ Seed PowerRemoteBroadsword Manual? 0 Play Time 00:58:03 Cumulative 5.6 hours Start 2025.08.17 @ 14:24:22 End 2025.08.17 @ 15:21:35 Sessions 1 Manual Loads 0 Difficulty Rogue Special Mode None Game No. 14 Rogue 14 Adventurer 0 Explorer 0 Win Type - Total 0 Types 0/0/0/0/0/0/0/0/0/0 Lore% 5 Gallery% 8 Achievement% 7 Wizard Run 0 Options --------- Layout 1 ASCII 0 Keyboard 0 Movement Vi Keybinds 0 Fullscreen 2 Font 24/Smallcaps Map View 50x35 Zoom Use 0% Tactical HUD 0 Map Filters NONE Filters NONE Steam 1 RUN: 1939ccb3-729e-410c-af2e-83a08ab7640c